bitfinex/quotes_BTCUSD_20241222
["timestamp","ask_amount","ask_price","bid_price","bid_amount"]
[1734856565726,0.19924483,96667.0,96665.0,0.0067163]
[1734856565926,0.19924483,96667.0,96662.0,0.0781]
[1734856566148,0.19924483,96667.0,96663.0,0.0067163]
[1734856566994,0.20224483,96667.0,96663.0,0.0067163]
[1734856567653,0.13940464,96666.0,96664.0,0.206902]
[1734856567856,0.1013084,96665.0,96662.0,0.0781]
[1734856568058,0.13940464,96666.0,96663.0,0.206904]
[1734856568358,0.13940464,96666.0,96663.0,0.2136203]
[1734856569023,0.14140464,96666.0,96663.0,0.2136203]
[1734856569202,0.09294719,96664.0,96663.0,0.2136203]
[1734856570161,0.09294719,96664.0,96663.0,0.2943203]
[1734856570585,0.007,96666.0,96664.0,0.0807]
[1734856570793,0.007,96666.0,96665.0,0.2069]
[1734856571161,0.005,96666.0,96665.0,0.21361908]
[1734856571416,0.09294719,96668.0,96665.0,0.21361908]
[1734856571417,0.09294719,96668.0,96665.0,0.29431908]
[1734856571827,0.09294719,96673.0,96672.0,0.206885]
[1734856572070,0.09294719,96673.0,96672.0,0.287585]
[1734856572337,0.09294719,96673.0,96672.0,0.29430408]
[1734856572541,0.09294719,96673.0,96672.0,0.33980408]
[1734856574453,8.57e-05,96678.0,96672.0,0.33980408]
[1734856574636,8.57e-05,96678.0,96674.0,0.206878]
[1734856574955,8.57e-05,96678.0,96675.0,0.00669139]
[1734856575165,8.57e-05,96678.0,96676.0,0.206876]
[1734856575540,8.57e-05,96678.0,96677.0,0.00669139]
[1734856576491,8.57e-05,96678.0,96677.0,0.08939139]
[1734856577271,0.0040857,96678.0,96677.0,0.08939139]
[1734856577524,0.0020857,96678.0,96677.0,0.08939139]
[1734856577928,0.0010857,96678.0,96677.0,0.08939139]
[1734856578068,8.57e-05,96678.0,96677.0,0.08939139]
[1734856578275,8.57e-05,96678.0,96677.0,0.08734296]
[1734856579316,8.57e-05,96678.0,96677.0,0.00464296]
[1734856579493,8.57e-05,96678.0,96670.0,0.289588]
[1734856579691,8.57e-05,96678.0,96671.0,0.00462505]
[1734856579920,8.57e-05,96678.0,96672.0,0.206885]
[1734856580326,8.57e-05,96678.0,96674.0,0.20688]
[1734856580506,0.0010857,96678.0,96674.0,0.20688]
[1734856580711,0.0010857,96678.0,96675.0,0.00462505]
[1734856581050,0.09403289,96678.0,96676.0,0.206876]
[1734856581252,0.09403289,96678.0,96676.0,0.21150105]
[1734856581387,0.09503289,96678.0,96676.0,0.21150105]
[1734856581587,0.09803289,96678.0,96676.0,0.21150105]
[1734856581841,0.09603289,96678.0,96676.0,0.21150105]
[1734856582036,0.09303289,96678.0,96676.0,0.21150105]
[1734856582242,0.2243084,96677.0,96676.0,0.00462505]
[1734856582615,0.206876,96676.0,96661.0,0.0827]
[1734856582818,0.1013084,96675.0,96661.0,0.0827]
[1734856583165,0.20688,96674.0,96660.0,0.0001712]
[1734856583374,0.1013084,96673.0,96660.0,0.0001712]
[1734856583661,0.09297345,96667.0,96660.0,0.0001712]
[1734856583836,0.1013084,96666.0,96660.0,0.0001712]
[1734856584205,0.123,96663.0,96660.0,0.0001712]
[1734856584406,0.3743084,96663.0,96660.0,0.0001712]
[1734856585677,0.5812124,96663.0,96660.0,0.0001712]
[1734856586018,1.20310283,96663.0,96660.0,0.0001712]
[1734856586570,0.1,96661.0,96660.0,0.00012778]
[1734856586737,0.2243084,96661.0,96660.0,0.00012778]
[1734856586943,0.3743084,96661.0,96660.0,0.00012778]
[1734856588210,0.3763084,96661.0,96660.0,0.00012778]
[1734856588868,0.5247084,96661.0,96660.0,0.00012778]
[1734856589558,0.8689112,96661.0,96660.0,0.00012778]
[1734856589988,0.8679112,96661.0,96660.0,0.00012778]
[1734856590431,0.8699112,96661.0,96660.0,0.00012778]
[1734856590907,0.8779112,96661.0,96660.0,0.00112778]
[1734856591340,0.8859112,96661.0,96660.0,0.00212778]
[1734856591548,0.5985112,96661.0,96660.0,0.00012778]
[1734856591793,0.4445112,96661.0,96660.0,0.00012778]
[1734856591958,0.4495112,96661.0,96660.0,0.00012778]
[1734856592597,0.4495112,96661.0,96660.0,0.00486406]
[1734856592598,0.4445112,96661.0,96660.0,0.00486406]
[1734856592730,0.4485112,96661.0,96660.0,0.00012778]
[1734856592932,0.4485112,96661.0,96660.0,0.00486406]
[1734856593586,0.4445112,96661.0,96660.0,0.00486406]
[1734856594260,0.4515112,96661.0,96660.0,0.00586406]
[1734856594453,0.4515112,96661.0,96660.0,0.00486406]
[1734856594655,0.4585112,96661.0,96660.0,0.00586406]
[1734856595081,0.4635112,96661.0,96660.0,0.00586406]
[1734856598370,0.4585112,96661.0,96660.0,0.00586406]
[1734856598553,0.4485112,96661.0,96660.0,0.00486406]
[1734856598957,0.3502028,96661.0,96660.0,0.00586406]
[1734856599161,0.3432028,96661.0,96660.0,0.00486406]
[1734856599361,0.13930996,96662.0,96661.0,0.206908]
[1734856599562,0.13930996,96662.0,96661.0,0.21168286]
[1734856600398,0.09287089,96662.0,96661.0,0.21168286]
[1734856601810,0.09787089,96662.0,96661.0,0.21168286]
[1734856602232,0.09987089,96662.0,96661.0,0.21168286]
[1734856605895,0.09995659,96662.0,96661.0,0.21168286]
[1734856607406,0.0070857,96662.0,96661.0,0.21168286]
[1734856609517,0.0999572,96662.0,96661.0,0.21168286]
[1734856610352,0.0979572,96662.0,96661.0,0.21168286]
[1734856610542,0.0050857,96662.0,96661.0,0.21168286]
[1734856610731,0.0010857,96662.0,96661.0,0.21168286]
[1734856611086,0.0030857,96662.0,96661.0,0.21168286]
[1734856617542,0.0010857,96662.0,96661.0,0.21168286]
[1734856617748,0.0020857,96662.0,96661.0,0.21168286]
[1734856617920,0.0020857,96662.0,96661.0,0.21185426]
[1734856618120,8.57e-05,96662.0,96661.0,0.21185426]
[1734856618333,0.0020857,96662.0,96661.0,0.21185426]
[1734856618535,0.0030857,96662.0,96661.0,0.21185426]
[1734856618735,0.0010857,96662.0,96661.0,0.21185426]
[1734856619411,0.0020857,96662.0,96661.0,0.21185426]
[1734856619852,0.0010857,96662.0,96661.0,0.21185426]
[1734856620087,0.1033941,96662.0,96661.0,0.00494626]
[1734856620517,0.1033941,96662.0,96661.0,0.0001714]
[1734856622044,0.2865941,96662.0,96661.0,0.0001714]
[1734856622432,0.42590406,96662.0,96661.0,0.0001714]
[1734856622932,0.42490406,96662.0,96661.0,0.0001714]
[1734856623305,0.42790406,96662.0,96661.0,0.0001714]
[1734856623748,0.63164351,96662.0,96661.0,0.0001714]
[1734856623933,0.513817,96661.0,96641.0,0.206949]
[1734856624152,0.206912,96659.0,96641.0,0.206949]
[1734856624387,0.206917,96657.0,96641.0,0.206949]
[1734856624588,0.1013084,96656.0,96643.0,0.206947]
[1734856624890,0.1013084,96656.0,96644.0,0.00476274]
[1734856625779,0.0929588,96645.0,96644.0,0.00476274]
[1734856626381,0.0929588,96645.0,96641.0,0.206949]
[1734856626574,0.0929588,96645.0,96644.0,0.00476274]
[1734856627142,0.1394382,96645.0,96644.0,0.00054326]
[1734856627324,0.1394382,96645.0,96644.0,0.005306]
[1734856627685,0.1404382,96645.0,96644.0,0.005306]
[1734856628265,0.002,96645.0,96644.0,0.005306]
[1734856628462,0.1394382,96646.0,96644.0,0.005306]
[1734856628661,0.2407466,96646.0,96644.0,0.005306]
[1734856628955,0.001,96645.0,96644.0,0.005306]
[1734856629183,0.002,96645.0,96644.0,0.005306]
[1734856629388,0.002,96645.0,96644.0,0.083806]
[1734856629596,0.53096701,96645.0,96644.0,0.083806]
[1734856629802,0.52996701,96645.0,96644.0,0.083806]
[1734856630006,0.52996701,96645.0,96644.0,0.0839774]
[1734856630774,0.52896701,96645.0,96644.0,0.00071466]
[1734856630998,0.206919,96657.0,96644.0,0.00071466]
[1734856630999,0.0930008,96646.0,96644.0,0.00071466]
[1734856631206,0.1013084,96645.0,96644.0,0.00071466]
[1734856631731,0.1023084,96645.0,96644.0,0.00071466]
[1734856632009,0.1033084,96645.0,96644.0,0.00071466]
[1734856633576,0.44661048,96645.0,96644.0,0.00071466]
[1734856634754,0.44661048,96645.0,96644.0,0.00551273]
[1734856634956,0.44661048,96645.0,96644.0,0.00071466]
[1734856643589,0.44661048,96645.0,96644.0,0.07901466]
[1734856644756,0.44561048,96645.0,96644.0,0.07901466]
[1734856644976,0.44461048,96645.0,96644.0,0.07901466]
[1734856645218,0.24072836,96645.0,96644.0,0.07901466]
[1734856645440,0.24172836,96645.0,96644.0,0.07901466]
[1734856646230,0.24172836,96645.0,96644.0,0.00071466]
[1734856646630,0.1023084,96645.0,96644.0,0.00071466]
[1734856647976,0.63130005,96645.0,96644.0,0.00071466]
[1734856649636,0.78130005,96645.0,96644.0,0.00071466]
[1734856651372,0.59540677,96645.0,96644.0,0.00071466]
[1734856651784,0.206945,96644.0,96629.0,0.0785]
[1734856652047,0.1013084,96643.0,96638.0,0.0002112]
[1734856652861,0.1013084,96643.0,96638.0,0.2071682]
[1734856653058,0.34309837,96645.0,96640.0,0.0451]
[1734856653287,0.34309837,96645.0,96642.0,0.0785]
[1734856653505,0.34309837,96645.0,96643.0,0.206947]
[1734856653689,0.27869542,96650.0,96649.0,0.206934]
[1734856654811,0.1393712,96652.0,96649.0,0.206934]
[1734856655014,0.1393712,96652.0,96650.0,0.0759]
[1734856655223,0.1393712,96652.0,96651.0,0.20693]
[1734856655866,0.0929124,96654.0,96651.0,0.20693]
[1734856656065,0.006,96652.0,96651.0,0.20693]
[1734856656241,0.006,96652.0,96651.0,0.33053]
[1734856657124,0.008,96652.0,96651.0,0.33053]
[1734856657326,0.002,96652.0,96651.0,0.33053]
[1734856657714,8.57e-05,96660.0,96659.0,0.206912]
[1734856658802,0.0050857,96660.0,96659.0,0.206912]
[1734856659204,8.57e-05,96660.0,96659.0,0.206912]
[1734856660460,0.0010857,96660.0,96659.0,0.206912]
[1734856664705,0.1023941,96660.0,96645.0,0.284742]
[1734856664876,0.1013084,96659.0,96645.0,0.284742]
[1734856665087,0.206915,96658.0,96645.0,0.0778]
[1734856665232,0.2513084,96657.0,96644.0,0.0001714]
[1734856665737,0.15,96653.0,96644.0,0.0001714]
[1734856665934,0.1013084,96652.0,96644.0,0.0001714]
[1734856666138,0.413864,96650.0,96644.0,0.0001714]
[1734856666335,0.15,96647.0,96644.0,0.0001714]
[1734856666681,0.15,96645.0,96644.0,0.0001714]
[1734856666887,0.2513084,96645.0,96644.0,0.0001714]
[1734856667902,0.59642387,96645.0,96644.0,0.0001714]
[1734856668114,0.79642387,96645.0,96644.0,0.0001714]
[1734856668314,0.79942387,96645.0,96644.0,0.0001714]
[1734856668692,0.83302407,96645.0,96644.0,0.0001714]
[1734856669464,0.73302407,96645.0,96644.0,0.0001714]
[1734856669667,0.15,96643.0,96623.0,0.0778]
[1734856669868,0.15,96641.0,96623.0,0.0778]
[1734856670073,0.15,96639.0,96623.0,0.0778]
[1734856670248,0.2513084,96639.0,96623.0,0.0778]
[1734856670457,0.5501084,96639.0,96618.0,0.0001712]
[1734856671186,0.89322387,96639.0,96618.0,0.0001712]
[1734856673520,0.90922387,96639.0,96638.0,0.0022112]
[1734856673687,0.90022387,96639.0,96638.0,0.0012112]
[1734856673890,0.81742387,96639.0,96638.0,0.0002112]
[1734856674073,0.83342387,96639.0,96638.0,0.0022112]
[1734856674274,0.82442387,96639.0,96638.0,0.0012112]
[1734856674627,0.82642387,96639.0,96638.0,0.0012112]
[1734856675055,0.83342387,96639.0,96638.0,0.0022112]
[1734856675190,0.72442387,96639.0,96638.0,0.0012112]
[1734856676362,0.71742387,96639.0,96638.0,0.0002112]
[1734856677100,0.72642387,96639.0,96638.0,0.0012112]
[1734856677345,0.82342387,96639.0,96638.0,0.0012112]
[1734856677539,0.83242387,96639.0,96638.0,0.0022112]
[1734856677734,0.82642387,96639.0,96638.0,0.0012112]
[1734856678096,0.83142387,96639.0,96638.0,0.0012112]
[1734856678595,1.10999181,96639.0,96638.0,0.0012112]
[1734856678919,0.41395,96630.0,96618.0,0.0001712]
[1734856679144,0.2513084,96629.0,96618.0,0.00027244]
[1734856679577,0.15,96627.0,96618.0,0.00027244]
[1734856679754,0.1013084,96626.0,96618.0,0.00027244]
[1734856680113,0.1013084,96626.0,96618.0,0.00127244]
[1734856680432,0.206985,96625.0,96618.0,0.00027244]
[1734856680631,0.1013084,96624.0,96618.0,0.00027244]
[1734856681086,0.19412548,96624.0,96618.0,0.00027244]
[1734856682867,0.19412548,96624.0,96620.0,0.206994]
[1734856683042,0.19612548,96624.0,96622.0,0.206992]
[1734856683248,0.09881708,96624.0,96622.0,0.206992]
[1734856683452,0.006,96624.0,96623.0,0.1281]
[1734856683946,0.004,96624.0,96623.0,0.1281]
[1734856684151,0.09281708,96626.0,96624.0,0.206987]
[1734856684805,0.09281708,96634.0,96630.0,0.206975]
[1734856685006,0.1013084,96633.0,96630.0,0.206975]
[1734856687028,0.1033084,96633.0,96630.0,0.206975]
[1734856687227,0.1073084,96633.0,96630.0,0.206975]
[1734856687717,0.006,96633.0,96632.0,0.20697]
[1734856688837,0.006,96633.0,96631.0,0.0823]
[1734856689043,0.1013084,96632.0,96631.0,0.0823]
[1734856689247,0.1013084,96632.0,96625.0,0.289285]
[1734856689502,0.1013084,96632.0,96625.0,0.496269]
[1734856689716,0.1013084,96632.0,96630.0,0.206973]
[1734856690080,0.1013084,96632.0,96625.0,0.289284]
[1734856690294,0.1053084,96632.0,96625.0,0.289284]
[1734856690496,0.1013084,96632.0,96625.0,0.289284]
[1734856691079,0.1073084,96632.0,96625.0,0.0823]
[1734856691491,0.356972,96631.0,96619.0,0.0823]
[1734856691652,0.1013084,96630.0,96619.0,0.0823]
[1734856693745,0.1043084,96630.0,96619.0,0.0823]
[1734856694106,0.1043084,96630.0,96620.0,0.206996]
[1734856694556,0.1053084,96630.0,96619.0,0.0823]
[1734856695121,0.1043084,96630.0,96619.0,0.0823]
[1734856695318,0.1053084,96630.0,96619.0,0.0823]
[1734856696096,0.1053084,96630.0,96621.0,0.206993]
[1734856696432,0.1053084,96630.0,96627.0,0.206981]
[1734856696635,0.1043084,96630.0,96627.0,0.206981]
[1734856697012,0.1023084,96630.0,96627.0,0.206981]
[1734856697415,0.1053084,96630.0,96627.0,0.206981]
[1734856697586,0.1013084,96630.0,96627.0,0.206981]
[1734856697785,0.1023084,96630.0,96627.0,0.206981]
[1734856698010,0.1053084,96630.0,96627.0,0.206981]
[1734856698259,0.1043084,96630.0,96627.0,0.206981]
[1734856698618,0.1053084,96630.0,96627.0,0.206981]
[1734856699562,0.1023084,96630.0,96627.0,0.206981]
[1734856699968,0.1043084,96630.0,96627.0,0.206981]
[1734856700167,0.1053084,96630.0,96622.0,0.206992]
[1734856701183,0.1013084,96630.0,96622.0,0.413984]
[1734856701402,0.1053084,96630.0,96622.0,0.413984]
[1734856702033,0.1053084,96630.0,96627.0,0.206979]
[1734856703166,0.1043084,96630.0,96627.0,0.206979]
[1734856703318,0.1013084,96630.0,96627.0,0.206979]
[1734856703648,0.1053084,96630.0,96623.0,0.20699]
[1734856703885,0.1023084,96630.0,96623.0,0.20699]
[1734856703995,0.1013084,96630.0,96623.0,0.20699]
[1734856706522,0.1043084,96630.0,96623.0,0.20699]
[1734856706797,0.1013084,96630.0,96623.0,0.20699]
[1734856707177,0.1073084,96630.0,96623.0,0.20699]
[1734856707380,0.1073084,96630.0,96621.0,0.0001714]
[1734856707381,0.1033084,96630.0,96621.0,0.0001714]
[1734856707602,0.438577,96629.0,96621.0,0.0001714]
[1734856707795,0.1013084,96628.0,96621.0,0.0001714]
[1734856707998,0.15,96627.0,96621.0,0.0001714]
[1734856708204,0.1013084,96626.0,96621.0,0.0001714]
[1734856708978,0.09281708,96623.0,96621.0,0.0001714]
[1734856709275,0.1013084,96622.0,96621.0,0.0001714]
[1734856710300,0.12177344,96622.0,96621.0,0.0001714]
[1734856710508,0.46700187,96622.0,96621.0,0.0001714]
[1734856710709,0.47200187,96622.0,96621.0,0.0001714]
[1734856710889,0.46700187,96622.0,96621.0,0.0001714]
[1734856711320,0.63023201,96622.0,96621.0,0.0001714]
[1734856711524,0.75323201,96622.0,96621.0,0.0001714]
[1734856712616,0.74823201,96622.0,96621.0,0.0001714]
[1734856712970,0.1,96619.0,96618.0,0.00023005]
[1734856713185,0.2243084,96619.0,96618.0,0.00023005]
[1734856713526,0.3743084,96619.0,96618.0,0.00023005]
[1734856714639,0.3783084,96619.0,96618.0,0.00023005]
[1734856715058,0.72153683,96619.0,96618.0,0.00023005]
[1734856715639,0.73053683,96619.0,96618.0,0.00123005]
[1734856718343,1.0094661,96619.0,96618.0,0.00123005]
[1734856720204,0.73053683,96619.0,96618.0,0.00123005]
[1734856723010,1.0094661,96619.0,96618.0,0.00123005]
[1734856724634,0.73053683,96619.0,96618.0,0.00123005]
[1734856727260,1.00920819,96619.0,96618.0,0.00123005]
[1734856728385,0.73053683,96619.0,96618.0,0.00123005]
[1734856728590,0.1,96612.0,96596.0,0.0822]
[1734856728888,0.15,96610.0,96596.0,0.08236303]
[1734856729110,0.15,96608.0,96596.0,0.08236303]
[1734856729337,0.1013084,96607.0,96596.0,0.08236303]
[1734856729800,0.1013084,96607.0,96597.0,0.207045]
[1734856731077,0.09286613,96605.0,96597.0,0.207045]
[1734856731328,0.1013084,96604.0,96596.0,0.08236303]
[1734856732936,0.1043084,96604.0,96596.0,0.08236303]
[1734856733808,0.1053084,96604.0,96596.0,0.08236303]
[1734856734965,0.1053084,96604.0,96597.0,0.207045]
[1734856735768,0.19517453,96604.0,96597.0,0.207045]
[1734856735961,0.19517453,96604.0,96602.0,0.207033]
[1734856736163,0.19517453,96604.0,96603.0,0.0819]
[1734856736406,0.19417453,96604.0,96603.0,0.0819]
[1734856736723,0.19517453,96604.0,96603.0,0.0819]
[1734856737137,0.19617453,96604.0,96603.0,0.0819]
[1734856737471,0.19717453,96604.0,96603.0,0.0819]
[1734856737739,0.19517453,96604.0,96603.0,0.0819]
[1734856738320,0.1023084,96604.0,96603.0,0.0819]
[1734856738699,0.1023084,96604.0,96603.0,0.0819857]
[1734856739083,0.1043084,96604.0,96603.0,0.0819857]
[1734856740189,0.2533084,96604.0,96603.0,8.57e-05]
[1734856740438,0.2523084,96604.0,96603.0,8.57e-05]
[1734856740716,0.2543084,96604.0,96603.0,8.57e-05]
[1734856740993,0.26360763,96604.0,96603.0,8.57e-05]
[1734856741795,0.26460763,96604.0,96603.0,8.57e-05]
[1734856742058,0.83975032,96604.0,96603.0,8.57e-05]
[1734856742337,0.83775032,96604.0,96603.0,8.57e-05]
[1734856742576,0.83975032,96604.0,96603.0,8.57e-05]
[1734856742837,0.60758499,96604.0,96603.0,8.57e-05]
[1734856744516,0.15,96603.0,96596.0,0.00016303]
[1734856744780,0.1013084,96602.0,96596.0,0.00016303]
[1734856745034,0.15,96600.0,96596.0,0.00016303]
[1734856745271,0.1013084,96599.0,96596.0,0.00016303]
[1734856745467,0.15,96598.0,96596.0,0.00016303]
[1734856745783,0.4583534,96597.0,96596.0,0.00016303]
[1734856746237,0.69068501,96597.0,96596.0,0.00016303]
[1734856746492,0.69068501,96597.0,96596.0,0.00116303]
[1734856746701,0.69068501,96597.0,96596.0,0.00016303]
[1734856747469,1.03966237,96597.0,96596.0,0.00016303]
[1734856748024,1.03766237,96597.0,96596.0,0.00016303]
[1734856748262,1.04066237,96597.0,96596.0,0.00016303]
[1734856748738,1.03666237,96597.0,96596.0,0.00016303]
[1734856749477,1.04366237,96597.0,96596.0,0.00116303]
[1734856749696,0.81133076,96597.0,96596.0,0.00116303]
[1734856750674,0.83433076,96597.0,96596.0,0.00116303]
[1734856751100,0.91363076,96597.0,96596.0,0.00116303]
[1734856751394,1.01363076,96597.0,96596.0,0.00116303]
[1734856752291,1.28530212,96597.0,96596.0,0.00024873]
[1734856752572,1.28230212,96597.0,96596.0,0.00024873]
[1734856752810,1.28930212,96597.0,96596.0,0.00124873]
[1734856753117,1.39230212,96597.0,96596.0,0.00124873]
[1734856753365,1.16153076,96597.0,96596.0,0.00124873]
[1734856753857,2.09453076,96597.0,96596.0,0.00124873]
[1734856754101,1.87553076,96597.0,96596.0,0.00124873]
[1734856754347,1.88053076,96597.0,96596.0,0.00124873]
[1734856754849,1.87353076,96597.0,96596.0,0.00024873]
[1734856755086,1.87353076,96597.0,96596.0,0.00124873]
[1734856755328,0.43006,96590.0,96582.0,0.0001712]
[1734856755569,0.7566684,96590.0,96589.0,0.00022573]
[1734856756311,0.48008,96581.0,96579.0,0.0001714]
[1734856756546,0.5813884,96581.0,96579.0,0.0001714]
[1734856757547,0.5863884,96581.0,96579.0,0.0001714]
[1734856758023,0.92936576,96581.0,96579.0,0.0001714]
[1734856758731,0.93836576,96581.0,96579.0,0.0001714]
[1734856759168,0.94859919,96581.0,96579.0,0.0001714]
[1734856760360,0.64151919,96581.0,96579.0,0.0001714]
[1734856760902,0.173,96580.0,96578.0,0.07750245]
[1734856761133,0.1013084,96579.0,96578.0,0.07750245]
[1734856761380,0.15,96578.0,96565.0,0.2072834]
[1734856761636,0.1013084,96577.0,96573.0,0.00022575]
[1734856761881,0.15,96576.0,96573.0,0.00022575]
[1734856762115,0.15,96574.0,96573.0,0.00022575]
[1734856762364,0.2513084,96574.0,96573.0,0.00022575]
[1734856763694,0.2553084,96574.0,96573.0,0.00022575]
[1734856763896,0.2783084,96574.0,96573.0,0.00022575]
[1734856764141,0.2743084,96574.0,96573.0,0.00022575]
[1734856764554,0.2783084,96574.0,96573.0,0.00022575]
[1734856764928,0.2853084,96574.0,96573.0,0.00022575]
[1734856765139,0.81380781,96574.0,96573.0,0.00022575]
[1734856767962,0.2853084,96574.0,96573.0,0.00022575]
[1734856774099,0.37813152,96574.0,96573.0,0.00022575]
[1734856775280,0.2853084,96574.0,96573.0,0.00022575]
[1734856777982,0.37814758,96574.0,96573.0,0.00022575]
[1734856779070,0.2853084,96574.0,96573.0,0.00022575]
[1734856780381,0.42455409,96574.0,96573.0,0.00022575]
[1734856781597,0.2853084,96574.0,96573.0,0.00022575]
[1734856782639,0.62820268,96574.0,96573.0,0.00022575]
[1734856784161,0.813934,96574.0,96573.0,0.00022575]
[1734856785697,0.62820268,96574.0,96573.0,0.00022575]
[1734856788348,0.47820268,96574.0,96573.0,0.00022575]
[1734856788734,0.57820268,96574.0,96573.0,0.00022575]
[1734856790055,0.85688014,96574.0,96573.0,0.00022575]
[1734856790267,0.1,96571.0,96570.0,0.000117]
[1734856790481,0.2243084,96571.0,96570.0,0.000117]
[1734856791406,0.4743084,96571.0,96570.0,0.000117]
[1734856791540,0.4803084,96571.0,96570.0,0.000117]
[1734856792479,0.4833084,96571.0,96570.0,0.000117]
[1734856792661,0.82620268,96571.0,96570.0,0.000117]
[1734856792843,0.81720268,96571.0,96570.0,0.000117]
[1734856793041,0.82320268,96571.0,96570.0,0.000117]
[1734856793231,0.82620268,96571.0,96570.0,0.000117]
[1734856793439,0.83082041,96571.0,96570.0,0.000117]
[1734856793647,0.82782041,96571.0,96570.0,0.000117]
[1734856793846,0.83682041,96571.0,96570.0,0.000117]
[1734856794044,0.82782041,96571.0,96570.0,0.000117]
[1734856794448,0.83382041,96571.0,96570.0,0.000117]
[1734856795341,0.83782041,96571.0,96570.0,0.000117]
[1734856795789,0.480112,96566.0,96565.0,0.0001714]
[1734856795990,0.5814204,96566.0,96565.0,0.0001714]
[1734856797823,0.92431468,96566.0,96565.0,0.0001714]
[1734856798023,0.93131468,96566.0,96565.0,0.0001714]
[1734856798529,0.93431468,96566.0,96565.0,0.0001714]
[1734856801040,0.95495251,96566.0,96565.0,0.0001714]
[1734856801231,1.05495251,96566.0,96565.0,0.0001714]
[1734856801499,1.13655251,96566.0,96565.0,0.0001714]
[1734856802018,1.13655251,96566.0,96557.0,0.00758278]
[1734856802019,0.557129,96558.0,96557.0,0.00758278]
[1734856802281,0.6814374,96558.0,96557.0,0.00758278]
[1734856803227,0.6854374,96558.0,96557.0,0.00758278]
[1734856803404,1.03033168,96558.0,96557.0,0.00758278]
[1734856803636,1.02633168,96558.0,96557.0,0.00758278]
[1734856803836,1.03233168,96558.0,96557.0,0.00758278]
[1734856805026,1.04286969,96558.0,96557.0,0.00758278]
[1734856805236,0.407142,96552.0,96541.0,0.0780714]
[1734856805440,0.6814504,96552.0,96541.0,0.0001714]
[1734856805818,0.7630504,96552.0,96541.0,0.0001714]
[1734856806063,0.33018,96534.0,96533.0,0.0001714]
[1734856806274,0.5814884,96534.0,96533.0,0.00071483]
[1734856806444,0.6814884,96534.0,96533.0,0.00071483]
[1734856807056,0.70201793,96534.0,96533.0,0.00071483]
[1734856807256,1.45501793,96534.0,96533.0,0.00071483]
[1734856807416,1.45624618,96534.0,96533.0,0.00071483]
[1734856807616,1.48959289,96534.0,96533.0,0.00071483]
[1734856807818,1.48159289,96534.0,96533.0,0.00071483]
[1734856808245,1.82448717,96534.0,96533.0,0.00071483]
[1734856808448,0.5572,96525.0,96524.0,0.0001714]
[1734856808652,5.05208336,96525.0,96524.0,0.00033415]
[1734856809005,5.02308336,96525.0,96524.0,0.00033415]
[1734856809193,4.43108336,96525.0,96524.0,0.00033415]
[1734856809432,4.43108336,96525.0,96497.0,0.0779]
[1734856809433,0.557228,96512.0,96497.0,0.0779]
[1734856809585,0.6815364,96512.0,96497.0,0.0779]
[1734856809789,0.70811136,96512.0,96497.0,0.0779]
[1734856810598,0.71039139,96512.0,96497.0,0.0779]
[1734856810790,0.79199139,96512.0,96480.0,0.0779]
[1734856811015,0.480271,96492.0,96480.0,0.0779]
[1734856811219,0.5815794,96492.0,96491.0,0.00026321]
[1734856812659,0.5875794,96492.0,96491.0,0.00126321]
[1734856812832,0.1073084,96492.0,96491.0,0.07916321]
[1734856813039,0.1073084,96492.0,96491.0,0.12786321]
[1734856813238,0.2303084,96492.0,96491.0,0.07916321]
[1734856813492,0.3803084,96492.0,96491.0,0.00126321]
[1734856813766,0.3803084,96492.0,96491.0,0.0009352]
[1734856813767,0.4803084,96492.0,96491.0,0.0009352]
[1734856813974,0.4893084,96492.0,96491.0,0.0009352]
[1734856814189,0.3803084,96492.0,96491.0,0.0009352]
[1734856814630,0.3893084,96492.0,96491.0,0.0009352]
[1734856814840,0.273,96491.0,96483.0,8.57e-05]
[1734856815041,0.15,96485.0,96483.0,8.57e-05]
[1734856815249,0.1243084,96484.0,96483.0,8.57e-05]
[1734856815867,0.12227587,96484.0,96483.0,8.57e-05]
[1734856816073,0.1013084,96484.0,96483.0,0.0010857]
[1734856816489,0.1013084,96484.0,96483.0,8.57e-05]
[1734856816854,0.1053084,96484.0,96483.0,8.57e-05]
[1734856817239,0.1143084,96484.0,96483.0,8.57e-05]
[1734856817443,0.1053084,96484.0,96483.0,0.0789857]
[1734856817663,0.1053084,96484.0,96483.0,0.1255857]
[1734856817863,0.1143084,96484.0,96483.0,0.1255857]
[1734856818077,0.1013084,96484.0,96483.0,0.1255857]
[1734856818285,0.1053084,96484.0,96483.0,0.1255857]
[1734856818563,0.1143084,96484.0,96483.0,0.1255857]
[1734856818899,0.1103084,96484.0,96483.0,0.1255857]
[1734856819126,0.1133084,96484.0,96483.0,0.1255857]
[1734856819825,0.1013084,96484.0,96483.0,0.1255857]
[1734856820026,0.1043084,96484.0,96483.0,0.1255857]
[1734856820239,0.1103084,96484.0,96483.0,0.1255857]
[1734856820744,0.1163084,96484.0,96483.0,0.1255857]
[1734856820947,0.003,96484.0,96483.0,0.1255857]
[1734856821353,0.01044799,96497.0,96484.0,0.207288]
[1734856821591,0.15,96495.0,96484.0,0.207288]
[1734856821797,0.1013084,96494.0,96484.0,0.207288]
[1734856822000,0.1013084,96494.0,96483.0,0.1255857]
[1734856822001,0.023,96493.0,96483.0,0.1255857]
[1734856822199,0.1013084,96492.0,96483.0,0.1255857]
[1734856822405,0.001,96484.0,96483.0,0.1255857]
[1734856822582,0.1023084,96484.0,96483.0,0.1255857]
[1734856822979,0.1013084,96484.0,96483.0,0.1255857]
[1734856823506,0.1053084,96484.0,96483.0,0.3328757]
[1734856823641,0.1013084,96484.0,96483.0,0.3328757]
[1734856824009,0.1053084,96484.0,96483.0,0.3328757]
[1734856824349,0.1013084,96484.0,96483.0,0.3328757]
[1734856824528,0.1063084,96484.0,96483.0,0.3328757]
[1734856824672,0.1073084,96484.0,96483.0,0.3328757]
[1734856825226,0.1063084,96484.0,96483.0,0.3328757]
[1734856825651,0.1083084,96484.0,96483.0,0.3328757]
[1734856826043,0.1063084,96484.0,96483.0,0.3328757]
[1734856826261,0.1013084,96484.0,96483.0,0.3328757]
[1734856826468,0.1063084,96484.0,96483.0,0.3328757]
[1734856826924,0.1023084,96484.0,96483.0,0.3328757]
[1734856827110,0.1073084,96484.0,96483.0,0.3328757]
[1734856827434,0.1023084,96484.0,96483.0,0.3328757]
[1734856827637,0.1013084,96484.0,96481.0,8.57e-05]
[1734856827818,0.1013084,96483.0,96482.0,0.207292]
[1734856828237,0.1013084,96483.0,96481.0,8.57e-05]
[1734856829186,0.2743084,96482.0,96481.0,8.57e-05]
[1734856830628,0.2793084,96482.0,96481.0,8.57e-05]
[1734856830901,0.27381588,96482.0,96481.0,8.57e-05]
[1734856832590,0.26881588,96482.0,96481.0,8.57e-05]
[1734856832808,0.27281588,96482.0,96481.0,8.57e-05]
[1734856833023,0.28181588,96482.0,96481.0,8.57e-05]